lending/lending_fUSD_20260204
["ID","MTS","AMOUNT","RATE_DAILY","PERIOD"]
[404479072,1770187840241,-488.21440149,0.00015571,2]
[404479073,1770187840251,-612.14889369,0.00015571,2]
[404479074,1770187840262,-166.66,0.00015602,2]
[404479075,1770187840273,-6663.98094715,0.00015602,2]
[404479076,1770187840284,-202.29846219,0.00015619,2]
[404479077,1770187840294,-151.0,0.00015619,2]
[404479078,1770187840304,-500.0,0.00015619,2]
[404479079,1770187840315,-151.0,0.00015619,2]
[404479080,1770187840325,-500.0,0.00015619,2]
[404479081,1770187840334,-151.0,0.00015619,2]
[404479082,1770187840343,-500.0,0.00015619,2]
[404479083,1770187840353,-151.0,0.00015619,2]
[404479084,1770187840364,-500.0,0.00015619,2]
[404479085,1770187840373,-151.0,0.00015619,2]
[404479086,1770187840383,-500.0,0.00015619,2]
[404479087,1770187840392,-151.0,0.00015619,2]
[404479088,1770187840402,-500.0,0.00015619,2]
[404479089,1770187840413,-151.0,0.00015619,2]
[404479090,1770187840423,-500.0,0.00015619,2]
[404479091,1770187840432,-151.0,0.00015619,2]
[404479092,1770187840441,-500.0,0.00015619,2]
[404479093,1770187840450,-151.0,0.00015619,2]
[404479094,1770187840460,-500.0,0.00015619,2]
[404479095,1770187840469,-151.0,0.00015619,2]
[404479096,1770187840478,-500.0,0.00015619,2]
[404479097,1770187840487,-151.0,0.00015619,2]
[404479098,1770187840496,-510.88207769,0.00015619,2]
[404479099,1770187840506,-500.0,0.00015619,2]
[404479100,1770187840515,-500.0,0.00015619,2]
[404479101,1770187840528,-500.0,0.00015619,2]
[404479102,1770187840538,-500.0,0.00015619,2]
[404479103,1770187840547,-500.0,0.00015619,2]
[404479104,1770187840556,-500.0,0.00015619,2]
[404479105,1770187840566,-500.0,0.00015619,2]
[404479106,1770187840575,-446.398853,0.00015619,2]
[404479107,1770187840584,-500.0,0.00015619,2]
[404479108,1770187840594,-423.81435249,0.0001583,2]
[404479109,1770187840603,-612.14889366,0.0001583,2]
[404479110,1770187840612,-166.66,0.00015923,2]
[404479111,1770187840622,-488.21440145,0.00015959,2]
[404479112,1770187840631,-161.86,0.00016002,2]
[404479113,1770187840640,-500.0,0.0001601,2]
[404479114,1770187840649,-449.0,0.00016052,2]
[404479115,1770187840658,-800.0,0.00016082,2]
[404479116,1770187840667,-423.81435249,0.00016089,2]
[404479117,1770187840677,-612.14889366,0.00016089,2]
[404479118,1770187840687,-333.34132533,0.00016153,2]
[404479119,1770187840696,-500.0,0.00016156,2]
[404479120,1770187840707,-166.66,0.00016245,2]
[404479121,1770187840716,-161.86,0.00016276,2]
[404479122,1770187840726,-406.27,0.00016322,2]
[404479123,1770187840735,-151.19,0.00016323,2]
[404479124,1770187840745,-200.0,0.00016329,2]
[404479125,1770187840755,-412.31134756,0.00016338,2]
[404479126,1770187840764,-488.21440145,0.00016347,2]
[404479127,1770187840774,-423.81435249,0.00016347,2]
[404479128,1770187840783,-612.14889366,0.00016347,2]
[404479129,1770187840793,-500.0,0.00016356,2]
[404479130,1770187840802,-1100.0,0.00016356,2]
[404479131,1770187840812,-500.0,0.00016436,2]
[404479132,1770187840822,-214.74181092,0.00016478,2]
[404479133,1770187840832,-378.83000863,0.00016478,2]
[404479134,1770187840842,-600.0,0.00016499,2]
[404479135,1770187840852,-600.0,0.00016499,2]
[404479136,1770187840861,-195.0,0.00016499,2]
[404479137,1770187840871,-487.0364942,0.00016541,2]
[404479138,1770187840880,-161.86,0.0001655,2]
[404479139,1770187840893,-471.9212428,0.00016555,2]
[404479140,1770187840903,-166.66,0.00016567,2]
[404479141,1770187840912,-423.81435249,0.00016606,2]
[404479142,1770187840922,-612.14889366,0.00016606,2]
[404479143,1770187840932,-10682.28254801,0.00016655,2]
[404479144,1770187840942,-333.34132533,0.00016736,2]
[404479145,1770187840951,-488.21440145,0.00016736,2]
[404479146,1770187840960,-161.86,0.00016824,2]
[404479147,1770187840970,-423.81435249,0.00016865,2]
[404479148,1770187840979,-612.14889366,0.00016865,2]
[404479149,1770187840988,-1366.0,0.0001687,2]
[404479150,1770187840997,-166.66,0.00016888,2]
[404479151,1770187841309,-487.0364942,0.00016955,2]
[404479152,1770187841320,-981.19772589,0.00017068,2]
[404479153,1770187841329,-500.0,0.00017093,2]
[404479154,1770187841338,-161.86,0.00017098,2]
[404479155,1770187841348,-500.0,0.00017099,2]
[404479156,1770187841357,-322.6107,0.00017099,2]
[404479157,1770187841366,-500.0,0.00017099,2]
[404479158,1770187841375,-500.0,0.00017099,2]
[404479159,1770187841387,-209.40437684,0.00017099,2]
[404479160,1770187841396,-500.0,0.00017099,2]
[404479161,1770187841405,-500.0,0.00017099,2]
[404479162,1770187841414,-500.0,0.00017099,2]
[404479163,1770187841423,-500.0,0.00017099,2]
[404479164,1770187841433,-500.0,0.00017099,2]
[404479165,1770187841442,-500.0,0.00017099,2]
[404479166,1770187841451,-500.0,0.00017099,2]
[404479167,1770187841461,-626.10481314,0.00017099,2]
[404479168,1770187841470,-174.61919141,0.00017099,2]
[404479169,1770187841479,-1366.0,0.00017099,2]
[404479170,1770187841488,-981.19772589,0.00017123,2]
[404479171,1770187841498,-488.21440145,0.00017124,2]
[404479172,1770187841506,-423.81435249,0.00017124,2]
[404479173,1770187841516,-612.14889366,0.00017124,2]
[404479174,1770187841525,-217.15233878,0.00017154,2]
[404479175,1770187841535,-981.19772589,0.00017205,2]
[404479176,1770187841545,-225.18697532,0.00017209,2]
[404479177,1770187841554,-981.19772589,0.0001726,2]
[404479178,1770187841563,-1000.0,0.0001726,2]
[404479179,1770187841572,-233.51889341,0.00017264,2]
[404479180,1770187841582,-1267.0,0.00017277,2]
[404479181,1770187841594,-168.0,0.00017295,2]
[404479182,1770187841603,-165.4252,0.00017316,2]
[404479183,1770187841612,-333.34132533,0.00017318,2]
[404479184,1770187841621,-242.15909246,0.00017319,2]
[404479185,1770187841630,-981.19772589,0.00017342,2]
[404479186,1770187841639,-168.0,0.00017358,2]
[404479187,1770187841648,-487.0364942,0.00017368,2]
[404479188,1770187841657,-161.86,0.00017372,2]
[404479189,1770187841666,-251.11897888,0.00017374,2]
[404479190,1770187841676,-1267.0,0.00017382,2]
[404479191,1770187841685,-423.81435249,0.00017382,2]
[404479192,1770187841694,-612.14889366,0.00017382,2]
[404479193,1770187841704,-316.3541921,0.00017397,2]
[404479194,1770187841713,-981.19772589,0.00017397,2]
[404479195,1770187841722,-260.4103811,0.00017429,2]
[404479196,1770187841731,-160.0,0.00017441,2]
[404479197,1770187841741,-200.0,0.00017449,2]
[404479198,1770187841750,-800.0,0.00017452,7]
[404479199,1770187841760,-10010.0,0.00017463,7]
[404479200,1770187841769,-160.0,0.00017463,7]
[404479201,1770187841779,-500.0,0.00017464,2]
[404479202,1770187841788,-500.0,0.00017464,2]
[404479203,1770187841797,-500.0,0.00017464,2]
[404479204,1770187841806,-500.0,0.00017464,2]
[404479205,1770187841816,-500.0,0.00017464,2]
[404479206,1770187841825,-500.0,0.00017464,2]
[404479207,1770187841834,-499.21024276,0.00017464,2]
[404479208,1770187841843,-500.0,0.00017464,2]
[404479209,1770187841852,-500.0,0.00017465,2]
[404479210,1770187841862,-500.0,0.00017465,2]
[404479211,1770187841871,-500.0,0.00017465,2]
[404479212,1770187841880,-500.0,0.00017465,2]
[404479213,1770187841889,-150.0,0.00017465,2]
[404479214,1770187841899,-500.0,0.00017465,2]
[404479215,1770187841908,-500.0,0.00017465,2]
[404479216,1770187841917,-500.0,0.00017465,2]
[404479217,1770187841926,-500.0,0.00017465,2]
[404479218,1770187841935,-500.0,0.00017465,2]
[404479219,1770187841944,-547.0,0.00017465,2]
[404479220,1770187841954,-631.0,0.00017465,2]
[404479221,1770187841963,-150.0,0.00017465,2]
[404479222,1770187841972,-500.0,0.00017465,2]
[404479223,1770187841981,-200.0,0.00017467,2]
[404479224,1770187841990,-566.70703657,0.00017478,2]
[404479225,1770187841999,-766.7649,0.00017478,2]
[404479226,1770187842008,-981.19772589,0.00017479,2]
[404479227,1770187842017,-270.0455652,0.00017484,2]
[404479228,1770187842027,-159.58944175,0.00017504,2]
[404479229,1770187842036,-1267.0,0.00017509,2]
[404479230,1770187842046,-488.21440145,0.00017512,2]
[404479231,1770187842055,-500.0,0.0001752,2]
[404479232,1770187842064,-500.0,0.0001752,2]
[404479233,1770187842073,-500.0,0.0001752,2]
[404479234,1770187842086,-500.0,0.0001752,2]
[404479235,1770187842095,-500.0,0.0001752,2]
[404479236,1770187842104,-500.0,0.0001752,2]
[404479237,1770187842114,-500.0,0.0001752,2]
[404479238,1770187842123,-500.0,0.0001752,2]
[404479239,1770187842132,-500.0,0.0001752,2]
[404479240,1770187842143,-547.0,0.0001752,2]
[404479241,1770187842155,-631.0,0.0001752,2]
[404479242,1770187842164,-241.64782027,0.0001752,2]
[404479243,1770187842173,-500.0,0.0001752,2]
[404479244,1770187842182,-981.19772589,0.00017534,2]
[404479245,1770187842191,-502.0,0.00017534,2]
[404479246,1770187842200,-1000.0,0.00017534,2]
[404479247,1770187842209,-280.03725112,0.00017539,2]
[404479248,1770187842218,-500.0,0.00017575,2]
[404479249,1770187842227,-500.0,0.00017575,2]
[404479250,1770187842236,-500.0,0.00017575,2]
[404479251,1770187842245,-622.40818404,0.00017575,2]
[404479252,1770187842254,-500.0,0.00017575,2]
[404479253,1770187842263,-500.0,0.00017575,2]
[404479254,1770187842272,-500.0,0.00017575,2]
[404479255,1770187842281,-500.0,0.00017575,2]
[404479256,1770187842290,-500.0,0.00017575,2]
[404479257,1770187842299,-547.0,0.00017575,2]
[404479258,1770187842308,-631.0,0.00017575,2]
[404479259,1770187842317,-500.0,0.00017575,2]
[404479260,1770187842326,-290.39862941,0.00017594,2]
[404479261,1770187842335,-981.19772589,0.00017616,2]
[404479262,1770187842344,-500.0,0.00017629,2]
[404479263,1770187842353,-500.0,0.00017629,2]
[404479264,1770187842362,-500.0,0.00017629,2]
[404479265,1770187842371,-500.0,0.00017629,2]
[404479266,1770187842380,-500.0,0.00017629,2]
[404479267,1770187842389,-500.0,0.00017629,2]
[404479268,1770187842398,-500.0,0.00017629,2]
[404479269,1770187842408,-547.0,0.00017629,2]
[404479270,1770187842416,-631.0,0.00017629,2]
[404479271,1770187842425,-500.0,0.00017629,2]
[404479272,1770187842434,-423.81435249,0.00017641,2]
[404479273,1770187842444,-612.14889366,0.00017641,2]
[404479274,1770187842453,-161.86,0.00017646,2]
[404479275,1770187842462,-181.08010149,0.00017647,2]
[404479276,1770187842471,-981.19772589,0.00017671,2]
[404479277,1770187842480,-730.499,0.00017672,2]
[404479278,1770187842489,-150.491,0.00017672,2]
[404479279,1770187842499,-150.0,0.00017684,2]
[404479280,1770187842508,-500.0,0.00017684,2]
[404479281,1770187842517,-500.0,0.00017684,2]
[404479282,1770187842527,-500.0,0.00017684,2]
[404479283,1770187842536,-500.0,0.00017684,2]
[404479284,1770187842547,-500.0,0.00017684,2]
[404479285,1770187842556,-500.0,0.00017684,2]
[404479286,1770187842565,-311.46949041,0.00017684,2]
[404479287,1770187842575,-547.0,0.00017684,2]
[404479288,1770187842584,-631.0,0.00017684,2]
[404479289,1770187842593,-500.0,0.00017684,2]
[404479290,1770187842602,-1100.0,0.00017726,7]
[404479291,1770187842611,-150.0,0.00017739,2]
[404479292,1770187842620,-500.0,0.00017739,2]
[404479293,1770187842629,-500.0,0.00017739,2]
[404479294,1770187842637,-500.0,0.00017739,2]
[404479295,1770187842647,-500.0,0.00017739,2]
[404479296,1770187842656,-500.0,0.00017739,2]
[404479297,1770187842665,-500.0,0.00017739,2]
[404479298,1770187842675,-631.0,0.00017739,2]
[404479299,1770187842684,-547.0,0.00017739,2]
[404479300,1770187842694,-500.0,0.00017739,2]
[404479301,1770187842703,-981.19772589,0.00017753,2]
[404479302,1770187842713,-1000.0,0.00017756,2]
[404479303,1770187842723,-3954.0,0.00017767,2]
[404479304,1770187842732,-487.0364942,0.00017782,2]
[404479305,1770187842741,-207.26117743,0.00017794,2]
[404479306,1770187842751,-500.0,0.00017794,2]
[404479307,1770187842760,-500.0,0.00017794,2]
[404479308,1770187842770,-500.0,0.00017794,2]
[404479309,1770187842780,-500.0,0.00017794,2]
[404479310,1770187842789,-500.0,0.00017794,2]
[404479311,1770187842799,-453.30370986,0.00017794,2]
[404479312,1770187842808,-631.0,0.00017794,2]
[404479313,1770187842818,-547.0,0.00017794,2]
[404479314,1770187842827,-500.0,0.00017794,2]
[404479315,1770187842837,-1782.91023241,0.000178,2]
[404479316,1770187842846,-1782.91023241,0.000178,2]
[404479317,1770187842855,-500.0,0.00017808,2]
[404479318,1770187842864,-981.19772589,0.00017808,2]
[404479319,1770187842874,-1000.0,0.00017808,2]
[404479320,1770187842883,-1782.91023241,0.00017814,2]
[404479321,1770187842892,-1782.91023241,0.00017814,2]
[404479322,1770187842901,-1267.0,0.00017816,2]
[404479323,1770187842911,-1782.91023241,0.00017829,2]
[404479324,1770187842921,-1782.91023241,0.00017829,2]
[404479325,1770187842931,-63398.97925082,0.0001783,2]
[404479326,1770187842940,-1782.91023241,0.00017843,2]
[404479327,1770187842951,-500.0,0.00017849,2]
[404479328,1770187842961,-500.0,0.00017849,2]
[404479329,1770187842970,-500.0,0.00017849,2]
[404479330,1770187842979,-228.05274747,0.00017849,2]
[404479331,1770187842988,-500.0,0.00017849,2]
[404479332,1770187842998,-631.0,0.00017849,2]
[404479333,1770187843007,-547.0,0.00017849,2]
[404479334,1770187843016,-500.0,0.00017849,2]
[404479335,1770187843025,-200.0,0.00017856,2]
[404479336,1770187843034,-1782.91023241,0.00017857,2]
[404479337,1770187843043,-500.0,0.00017863,2]
[404479338,1770187843052,-487.0,0.00017863,2]
[404479339,1770187843061,-529.11,0.00017863,2]
[404479340,1770187843071,-500.0,0.00017899,2]
[404479341,1770187843082,-321.87080202,0.00017899,2]
[404479342,1770187843091,-25000.0,0.000179,3]
[404479343,1770187843100,-160.0,0.000179,3]
[404479344,1770187843109,-500.0,0.000179,2]
[404479345,1770187843119,-25000.0,0.000179,3]
[404479346,1770187843128,-10000.0,0.000179,2]
[404479347,1770187843137,-10142.1213,0.000179,2]
[404479348,1770187843148,-237.3935,0.000179,2]
[404479349,1770187843157,-333.34132533,0.000179,2]
[404479350,1770187843166,-488.21440145,0.000179,2]
[404479351,1770187843175,-423.81435249,0.000179,2]
[404479352,1770187843184,-612.14889366,0.000179,2]
[404479353,1770187843193,-16152.7997049,0.000179,3]
[404479354,1770187843202,-372.12126141,0.000179,2]
[404479355,1770187843211,-239.86447206,0.000179,2]
[404479356,1770187843220,-8973.0,0.000179,2]
[404479357,1770187843229,-500.0,0.00017903,2]
[404479358,1770187843238,-500.0,0.00017903,2]
[404479359,1770187843247,-500.0,0.00017903,2]
[404479360,1770187843256,-285.0,0.00017903,2]
[404479361,1770187843265,-631.0,0.00017903,2]
[404479362,1770187843275,-547.0,0.00017903,2]
[404479363,1770187843284,-500.0,0.00017903,2]
[404479364,1770187843293,-500.0,0.00017918,2]
[404479365,1770187843303,-161.86,0.0001792,2]
[404479366,1770187843312,-500.0,0.00017958,2]
[404479367,1770187843321,-500.0,0.00017958,2]
[404479368,1770187843329,-500.0,0.00017958,2]
[404479369,1770187843338,-631.0,0.00017958,2]
[404479370,1770187843347,-547.0,0.00017958,2]
[404479371,1770187843357,-500.0,0.00017958,2]
[404479372,1770187843366,-200.0,0.00017969,2]
[404479373,1770187843375,-702.05888432,0.0001797,2]
[404479374,1770187843384,-500.0,0.00017972,2]
[404479375,1770187843392,-496.6693993,0.00017973,2]
[404479376,1770187843401,-465.90748908,0.00017973,2]
[404479377,1770187843410,-336.59163653,0.00017973,2]
[404479378,1770187843419,-500.0,0.00017973,2]
[404479379,1770187843428,-500.0,0.00017973,2]
[404479380,1770187843437,-500.0,0.00017973,2]
[404479381,1770187843446,-500.0,0.00017973,2]
[404479382,1770187843455,-500.0,0.00017973,2]
[404479383,1770187843465,-500.0,0.00017973,2]
[404479384,1770187843474,-500.0,0.00017973,2]
[404479385,1770187843485,-500.0,0.00017973,2]
[404479386,1770187843493,-500.0,0.00017973,2]
[404479387,1770187843503,-500.0,0.00017973,2]
[404479388,1770187843512,-501.02089422,0.00017973,2]
[404479389,1770187843521,-151.18993016,0.00017973,2]
[404479390,1770187843530,-500.96948842,0.00017973,2]
[404479391,1770187843539,-500.68854041,0.00017973,2]
[404479392,1770187843548,-160.61789884,0.00017973,2]
[404479393,1770187843557,-500.0,0.00017973,2]
[404479394,1770187843566,-502.60776792,0.00017982,2]
[404479395,1770187843575,-409.9369716,0.0001799,2]
[404479396,1770187843584,-409.9369716,0.0001799,2]
[404479397,1770187843593,-409.9369716,0.0001799,2]
[404479398,1770187843603,-151.0,0.00017997,2]
[404479399,1770187843612,-150.0,0.00017999,2]
[404479400,1770187843622,-252.00977238,0.00017999,2]
[404479401,1770187843632,-155.353,0.00017999,2]
[404479402,1770187843641,-500.0,0.00017999,2]
[404479403,1770187843650,-500.0,0.00017999,2]
[404479404,1770187843660,-500.0,0.00017999,2]
[404479406,1770187843669,-500.0,0.00017999,2]
[404479407,1770187843679,-500.0,0.00017999,2]
[404479408,1770187843688,-500.0,0.00017999,2]
[404479409,1770187843698,-392.76776902,0.00017999,2]
[404479411,1770187843707,-300.0,0.00017999,2]
[404479412,1770187843716,-547.91380347,0.00017999,2]
[404479415,1770187843726,-559.34492563,0.00017999,2]
[404479416,1770187843735,-158.15478648,0.00017999,2]
[404479417,1770187843745,-300.0,0.00017999,2]
[404479418,1770187843755,-670.68068141,0.00017999,2]
[404479419,1770187843766,-529.30144481,0.00017999,2]
[404479420,1770187843776,-500.0,0.00017999,2]
[404479421,1770187843785,-500.0,0.00017999,2]
[404479422,1770187843795,-500.0,0.00017999,2]
[404479424,1770187843804,-154.56738754,0.00017999,2]
[404479426,1770187843814,-300.0,0.00017999,2]
[404479427,1770187843823,-666.0,0.00017999,2]
[404479428,1770187843832,-383.98499971,0.00017999,2]
[404479429,1770187843842,-1000.0,0.00018,2]
[404479430,1770187843851,-1000.0,0.00018,2]
[404479431,1770187843860,-979.90774973,0.00018,2]
[404479432,1770187843869,-2137986.95870347,0.00018,2]
[404479433,1770187843879,-2001.10148409,0.00018,2]
[404479434,1770187843888,-1707575.03380047,0.00018,2]
[404479435,1770187844757,-324.97946918,0.00018,2]
[404479462,1770187846103,-573.95549409,0.00018,2]
[404479465,1770187846115,-1077.09581276,0.00018,2]
[404479466,1770187846400,-1779.5,0.00018,2]
[404479467,1770187846413,-984.14314611,0.00018,2]
[404479495,1770189032167,-508.0,7.945e-05,2]
[404479496,1770189032182,-39.895691,7.945e-05,2]
[404479497,1770189032192,-250.0,8.74e-05,2]
[404479498,1770189032416,-110.80291186,8.74e-05,2]
[404479499,1770189032448,-139.19708814,8.74e-05,2]
[404479500,1770189032457,-195.0,0.00011218,2]
[404479501,1770189032470,-1382.04549495,0.00011327,2]
[404479503,1770189032486,-1804.90450505,0.00011327,2]
[404479505,1770189032497,-1259.71972,0.00013165,2]
[404479507,1770189032507,-1200.0,0.00013231,2]
[404479509,1770189032516,-10595.69277543,0.00013232,2]
[404479511,1770189032525,-195.0,0.00013232,2]
[404479512,1770189032535,-1004.01,0.00013934,2]
[404479513,1770189032545,-152.19,0.00013961,2]
[404479514,1770189032554,-300.0,0.00014563,2]
[404479515,1770189032564,-500.0,0.000146,2]
[404479516,1770189032573,-152.19,0.00014737,2]
[404479517,1770189032583,-10595.69277543,0.0001476,2]
[404479518,1770189032592,-7550.1598,0.00014788,2]
[404479519,1770189032601,-479.387,0.0001479,2]
[404479520,1770189032610,-1341.31385854,0.00014817,2]
[404479521,1770189032621,-2170.72432938,0.00014817,2]
[404479522,1770189032631,-333.34132537,0.00014832,2]
[404479523,1770189032641,-488.21440149,0.00014832,2]
[404479524,1770189032651,-500.0,0.00014862,2]
[404479525,1770189032660,-150.0,0.00014862,2]
[404479526,1770189032669,-202.29846219,0.0001488,2]
[404479527,1770189032678,-500.0,0.00014888,2]
[404479528,1770189032688,-39.4069033,0.00014917,2]
[404479529,1770189032716,-460.5930967,0.00014917,2]
[404479530,1770189032726,-500.0,0.00014972,2]
[404479531,1770189032736,-38.4069033,0.0001499,2]
[404479532,1770189032752,-125.0930967,0.0001499,2]
[404479533,1770189032761,-250.0,0.00015,2]
[404479534,1770189032770,-1000.0,0.00015011,2]
[404479535,1770189032780,-500.0,0.00015072,2]
[404479536,1770189032789,-500.0,0.00015072,2]
[404479537,1770189032798,-208.5789033,0.00015072,2]
[404479538,1770189032871,-291.4210967,0.00015072,2]
[404479539,1770189032880,-500.0,0.00015072,2]
[404479540,1770189032890,-500.0,0.00015072,2]
[404479541,1770189032899,-61.40576118,0.00015072,2]
[404479542,1770189038278,-438.59423882,0.00015072,2]
[404479543,1770189038289,-500.0,0.00015072,2]
[404479544,1770189038299,-500.0,0.00015072,2]
[404479545,1770189038309,-500.0,0.00015072,2]
[404479546,1770189038318,-500.0,0.00015072,2]
[404479547,1770189038328,-500.0,0.00015072,2]
[404479548,1770189038337,-500.0,0.00015072,2]
[404479549,1770189038347,-500.0,0.00015072,2]
[404479550,1770189038357,-500.0,0.00015072,2]
[404479551,1770189038366,-500.0,0.00015072,2]
[404479552,1770189038376,-500.0,0.00015072,2]
[404479553,1770189038386,-446.398853,0.00015072,2]
[404479554,1770189038399,-500.0,0.00015072,2]
[404479555,1770189038409,-500.0,0.00015072,2]
[404479556,1770189038418,-358.68658117,0.00015072,2]
[404479557,1770189038430,-141.31341883,0.00015072,2]
[404479558,1770189038439,-500.0,0.00015072,2]
[404479559,1770189038449,-151.0,0.00015072,2]
[404479560,1770189038458,-151.0,0.00015072,2]
[404479561,1770189038470,-151.0,0.00015072,2]
[404479562,1770189038480,-151.0,0.00015072,2]
[404479563,1770189038490,-151.0,0.00015072,2]
[404479564,1770189038500,-151.0,0.00015072,2]
[404479565,1770189038514,-151.0,0.00015072,2]
[404479566,1770189038525,-151.0,0.00015072,2]
[404479567,1770189038536,-151.0,0.00015072,2]
[404479568,1770189038545,-151.0,0.00015072,2]
[404479569,1770189038555,-151.0,0.00015072,2]
[404479570,1770189038564,-1000.0,0.00015148,2]
[404479571,1770189038573,-3512.03818785,0.0001516,2]
[404479572,1770189038582,-488.21440145,0.00015343,2]
[404479573,1770189038592,-3512.03818785,0.00015502,2]
[404479574,1770189038604,-152.19,0.00015512,2]
[404479575,1770189038614,-333.34132533,0.00015599,2]
[404479576,1770189038624,-163.5,0.0001563,2]
[404479577,1770189038633,-7743.76008574,0.00015679,2]
[404479578,1770189038642,-1500.0,0.00015696,2]
[404479579,1770189038652,-348.40612513,0.00015845,2]
[404479580,1770189038668,-671.07308538,0.00015845,2]
[404479583,1770189040442,-2492.55897734,0.00015845,2]
[404479584,1770189040452,-488.21440145,0.00015855,2]
[404479585,1770189040463,-1000.0,0.00016082,2]
[404479586,1770189040474,-1300.0,0.00016082,2]
[404479587,1770189040483,-215.62,0.0001611,2]
[404479588,1770189040493,-750.53,0.00016148,2]
[404479589,1770189040503,-500.0,0.00016164,2]
[404479590,1770189040514,-3512.03818785,0.00016187,2]
[404479591,1770189040524,-500.0,0.00016244,2]
[404479592,1770189040534,-2000.0,0.00016244,2]
[404479593,1770189040544,-3240.0,0.00016273,2]
[404479594,1770189040554,-10595.69277543,0.00016287,2]
[404479595,1770189040565,-152.19,0.00016288,2]
[404479596,1770189040575,-500.0,0.00016356,2]
[404479597,1770189040584,-163.5,0.0001636,2]
[404479598,1770189040594,-333.34132533,0.00016366,2]
[404479599,1770189040606,-488.21440145,0.00016366,2]
[404479600,1770189040626,-163.5,0.0001649,2]
[404479601,1770189040636,-3512.03818785,0.0001653,2]
[404479602,1770189040646,-487.0364942,0.00016541,2]
[404479603,1770189040657,-163.5,0.000167,2]
[404479604,1770189040667,-163.5,0.000167,3]
[404479605,1770189040676,-165.74,0.00016712,2]
[404479606,1770189040685,-2500.0,0.00016792,2]
[404479607,1770189040695,-500.0,0.00016871,2]
[404479608,1770189040991,-500.0,0.00016871,2]
[404479609,1770189041002,-500.0,0.00016871,2]
[404479610,1770189041013,-500.0,0.00016871,2]
[404479611,1770189041022,-500.0,0.00016871,2]
[404479612,1770189041032,-500.0,0.00016871,2]
[404479613,1770189041041,-500.0,0.00016871,2]
[404479614,1770189041051,-500.0,0.00016871,2]
[404479615,1770189041060,-500.0,0.00016871,2]
[404479616,1770189041070,-500.0,0.00016871,2]
[404479617,1770189041079,-500.0,0.00016871,2]
[404479618,1770189041088,-500.0,0.00016871,2]
[404479619,1770189041098,-500.0,0.00016871,2]
[404479620,1770189041107,-500.0,0.00016871,2]
[404479621,1770189041116,-500.0,0.00016871,2]
[404479622,1770189041126,-500.0,0.00016871,2]
[404479623,1770189041135,-500.0,0.00016871,2]
[404479624,1770189041144,-649.13156394,0.00016871,2]
[404479625,1770189041154,-500.0,0.00016871,2]
[404479626,1770189041163,-3512.03818785,0.00016872,2]
[404479627,1770189041172,-488.21440145,0.00016877,2]
[404479628,1770189041181,-1000.0,0.00016887,2]
[404479629,1770189041191,-487.0364942,0.00016955,2]
[404479630,1770189041200,-300.0,0.00017,2]
[404479631,1770189041210,-152.19,0.00017064,2]
[404479632,1770189041219,-981.19772589,0.00017068,2]
[404479633,1770189041228,-500.0,0.00017094,2]
[404479634,1770189041238,-174.61919141,0.00017099,2]
[404479635,1770189041247,-500.0,0.00017099,2]
[404479636,1770189041259,-500.0,0.00017099,2]
[404479637,1770189041268,-500.0,0.00017099,2]
[404479638,1770189041282,-500.0,0.00017099,2]
[404479639,1770189041292,-500.0,0.00017099,2]